bitfinex-derivatives/quotes_BNBF0:USTF0_20250309
["timestamp","ask_amount","ask_price","bid_price","bid_amount"]
[1741480425269,0.29377253,592.66,591.9,5.452]
[1741480425467,0.89897793,592.65,591.9,5.452]
[1741480425674,0.89897793,592.64,591.9,5.452]
[1741480425866,0.89897793,592.63,591.9,5.452]
[1741480426068,0.89897793,592.62,591.9,5.452]
[1741480426271,0.29377253,592.66,591.9,5.452]
[1741480426471,0.8990857,592.65,591.9,5.452]
[1741480426669,0.8990857,592.64,591.9,5.452]
[1741480426968,0.8990857,592.63,591.9,5.452]
[1741480427169,0.89908481,592.62,591.9,5.452]
[1741480427370,0.89908481,592.61,591.9,5.452]
[1741480427667,0.89917354,592.93,591.94,1.26216226]
[1741480427869,0.89917354,592.92,591.94,1.26216226]
[1741480428069,0.89917354,592.91,591.94,1.26216226]
[1741480428270,0.89917354,592.9,591.94,1.26216226]
[1741480428571,0.89917354,592.89,591.94,1.26216226]
[1741480428766,0.89917354,592.88,591.94,1.26216226]
[1741480428974,0.89917354,592.87,591.94,1.26216226]
[1741480429173,0.89917354,592.86,591.94,1.26216226]
[1741480429372,0.89917354,592.85,591.94,1.26216226]
[1741480429570,0.89917354,592.84,591.94,1.26216226]
[1741480429771,0.89917354,592.83,591.94,1.26216226]
[1741480429969,0.89917354,592.82,591.94,1.26216226]
[1741480430272,0.89917354,592.81,591.94,1.26216226]
[1741480430572,0.89917354,592.8,591.94,1.26216226]
[1741480430871,0.33730225,592.94,591.94,1.26216226]
[1741480431073,0.89947155,592.93,591.95,5.045]
[1741480431273,0.89947155,592.92,591.95,5.045]
[1741480431473,0.29369567,592.93,591.95,5.045]
[1741480431474,0.89947155,592.91,591.95,5.045]
[1741480431673,0.89947155,592.9,591.95,5.045]
[1741480431873,0.89947155,592.89,591.95,5.045]
[1741480432074,0.89947155,592.88,591.95,5.045]
[1741480432271,0.89947155,592.87,591.95,5.045]
[1741480432472,0.89947155,592.86,591.95,5.045]
[1741480432671,0.89947155,592.85,591.95,5.045]
[1741480432868,0.89947155,592.84,591.95,5.045]
[1741480433073,0.89947155,592.83,591.95,5.045]
[1741480433275,0.89947155,592.82,591.95,5.045]
[1741480433474,0.89947155,592.81,591.95,5.045]
[1741480433674,0.33730225,592.94,591.95,5.045]
[1741480433675,0.89947155,592.8,591.95,5.045]
[1741480433969,0.33730225,592.94,591.95,5.045]
[1741480433970,0.89947155,592.79,591.95,5.045]
[1741480434173,0.89947155,592.78,591.95,5.045]
[1741480434368,0.89947155,592.77,591.95,5.045]
[1741480434572,0.89947155,592.76,591.95,5.045]
[1741480434769,0.89947155,592.75,591.95,5.045]
[1741480435073,0.89947155,592.74,591.95,5.045]
[1741480435270,0.89947155,592.73,591.95,5.045]
[1741480435473,0.89947155,592.72,591.95,5.045]
[1741480435676,0.29374773,592.79,591.95,5.045]
[1741480435677,0.89947155,592.71,591.95,5.045]
[1741480435870,0.89947155,592.7,591.95,5.045]
[1741480436074,0.89947155,592.69,591.95,5.045]
[1741480436272,0.89947155,592.68,591.95,5.045]
[1741480436474,0.89947155,592.67,591.95,5.045]
[1741480436671,0.89947155,592.66,591.95,5.045]
[1741480436875,0.90069596,592.65,591.95,5.045]
[1741480437076,0.90069596,592.64,591.95,5.045]
[1741480437271,0.90069596,592.63,591.95,5.045]
[1741480437476,0.90069596,592.62,591.95,5.045]
[1741480437678,0.90069596,592.61,591.95,5.045]
[1741480437871,0.90069596,592.6,591.95,5.045]
[1741480438071,0.90069596,592.59,591.95,5.045]
[1741480438275,0.90069596,592.58,591.95,5.045]
[1741480438474,0.90069596,592.57,591.95,5.045]
[1741480438676,0.90069596,592.56,591.95,5.045]
[1741480438872,0.90134164,592.55,591.95,5.045]
[1741480439073,0.90173061,592.54,591.95,5.045]
[1741480439271,0.33730225,592.94,591.95,5.045]
[1741480439574,0.9017246,592.93,591.95,5.045]
[1741480439775,0.9017246,592.92,591.95,5.045]
[1741480439975,0.9017246,592.91,591.95,5.045]
[1741480440176,0.9017246,592.9,591.95,5.045]
[1741480440376,0.9017246,592.89,591.95,5.045]
[1741480440678,0.9017246,592.88,591.95,5.045]
[1741480440878,0.9017246,592.87,591.95,5.045]
[1741480441181,0.9017246,592.86,591.95,5.045]
[1741480441378,0.9017246,592.85,591.95,5.045]
[1741480441579,0.9017246,592.84,591.95,5.045]
[1741480441779,0.9017246,592.83,591.95,5.045]
[1741480441980,0.9017246,592.82,591.95,5.045]
[1741480442180,0.9017246,592.81,591.95,5.045]
[1741480442381,0.9017246,592.8,591.95,5.045]
[1741480442682,0.9017246,592.79,591.95,5.045]
[1741480442980,0.9017246,592.78,591.95,5.045]
[1741480443179,0.9017246,592.77,591.95,4.102]
[1741480443381,0.9017246,592.76,591.95,4.102]
[1741480443681,0.9017246,592.75,591.95,4.102]
[1741480443979,0.9017246,592.74,591.95,4.102]
[1741480444181,0.9017246,592.73,591.95,4.102]
[1741480444376,0.9017246,592.72,591.95,4.102]
[1741480444579,0.9017246,592.71,591.95,4.102]
[1741480444776,0.9017246,592.7,591.95,4.102]
[1741480444975,0.9017246,592.69,591.95,4.102]
[1741480445181,0.9017246,592.68,591.95,4.102]
[1741480445482,0.9017246,592.67,591.95,4.102]
[1741480445681,0.9017246,592.66,591.95,4.102]
[1741480445877,0.9017246,592.65,591.95,4.102]
[1741480446086,0.9017246,592.64,591.95,4.102]
[1741480446377,0.9017246,592.63,591.96,0.831]
[1741480446581,0.9017246,592.62,591.96,0.831]
[1741480446782,0.9017246,592.61,591.96,0.831]
[1741480446975,0.9017246,592.6,591.96,0.831]
[1741480447179,0.9017246,592.59,591.96,0.831]
[1741480447378,0.9017246,592.58,591.96,0.831]
[1741480447582,0.9017246,592.57,591.96,0.831]
[1741480447784,0.9017246,592.56,591.96,0.831]
[1741480447985,0.9017246,592.55,591.96,0.831]
[1741480448186,0.9017246,592.54,591.96,0.831]
[1741480448386,0.9017246,592.53,591.96,0.831]
[1741480448579,0.9017246,592.52,591.96,0.831]
[1741480448784,0.9017246,592.51,591.96,0.831]
[1741480449086,0.9017246,592.5,591.96,0.831]
[1741480449281,0.9017246,592.49,591.97,0.686]
[1741480449481,0.9017246,592.48,591.97,0.686]
[1741480449685,0.9017246,592.47,591.97,0.686]
[1741480449887,0.9017246,592.46,591.97,0.686]
[1741480450084,0.9017246,592.45,591.97,0.686]
[1741480450388,0.90125744,592.44,591.97,0.686]
[1741480450591,0.90125744,592.43,591.97,0.686]
[1741480450788,0.90125744,592.42,591.97,0.686]
[1741480450989,0.90125744,592.41,591.97,0.686]
[1741480451192,0.90125744,592.4,591.97,0.686]
[1741480451389,0.90125744,592.39,591.97,0.686]
[1741480451589,0.90125744,592.38,591.97,0.686]
[1741480451785,0.90125744,592.37,591.97,0.686]
[1741480451987,0.90125744,592.36,591.97,0.686]
[1741480452189,0.90125744,592.35,591.97,0.686]
[1741480452489,0.29384447,592.41,591.97,0.686]
[1741480452490,0.90047552,592.34,591.97,0.686]
[1741480452689,0.90047552,592.33,591.97,0.686]
[1741480452891,0.90047552,592.32,591.97,0.686]
[1741480453091,0.29384447,592.41,591.97,0.686]
[1741480453291,0.90043049,592.4,591.97,0.686]
[1741480453486,0.90043049,592.39,591.97,0.686]
[1741480453691,0.90043049,592.38,591.97,0.686]
[1741480453887,0.90043049,592.37,591.97,0.686]
[1741480454091,0.90043049,592.36,591.97,0.686]
[1741480454286,0.90043049,592.35,591.97,0.686]
[1741480454493,0.90043049,592.34,591.97,0.686]
[1741480454693,0.90043049,592.33,591.97,0.686]
[1741480454992,0.29386556,592.36,591.97,0.686]
[1741480454993,0.90043049,592.32,591.97,0.686]
[1741480455189,0.90043049,592.31,591.97,0.686]
[1741480455386,0.29386556,592.36,591.97,0.686]
[1741480455589,0.89960468,592.35,591.97,0.686]
[1741480455793,0.89960468,592.34,591.97,0.686]
[1741480455995,0.29386556,592.36,591.97,0.686]
[1741480456193,0.89974301,592.35,591.97,0.686]
[1741480456394,0.29386556,592.36,591.97,0.686]
[1741480456690,0.89954991,592.35,591.97,0.686]
[1741480456893,0.29386556,592.36,591.97,0.686]
[1741480457094,0.33730225,592.94,591.97,0.686]
[1741480457292,0.29386804,592.34,591.97,0.686]
[1741480457492,0.33730225,592.94,591.97,0.686]
[1741480457792,1.20961411,592.93,591.97,0.686]
[1741480457993,0.33731932,592.91,591.97,0.686]
[1741480458194,1.20961411,592.9,591.97,0.686]
[1741480458392,0.33733639,592.88,591.97,0.686]
[1741480458593,1.20961411,592.87,591.97,0.686]
[1741480458797,1.54696188,592.86,591.97,0.686]
[1741480458996,1.54696757,592.85,591.97,0.686]
[1741480459192,0.29379609,592.92,591.97,0.686]
[1741480459193,1.54697326,592.84,591.97,0.686]
[1741480459391,1.23677041,592.83,591.97,0.686]
[1741480459695,0.89940557,592.82,591.97,0.686]
[1741480459890,0.89940557,592.81,591.97,0.686]
[1741480460096,1.20961666,592.8,591.97,0.686]
[1741480460296,1.23679317,592.79,591.97,0.686]
[1741480460597,1.23679886,592.78,591.97,0.686]
[1741480460798,1.23680456,592.77,591.97,0.686]
[1741480460990,1.23681025,592.76,591.97,0.686]
[1741480461191,0.89940557,592.75,591.97,0.686]
[1741480461392,0.29380849,592.8,591.96,0.831]
[1741480461393,1.23682163,592.74,591.96,0.831]
[1741480461596,1.23682733,592.73,591.96,0.831]
[1741480461796,1.23683302,592.72,591.96,0.831]
[1741480461998,1.23683871,592.71,591.96,0.831]
[1741480462197,1.2368444,592.7,591.96,0.831]
[1741480462396,0.89940557,592.69,591.97,1.161]
[1741480462594,0.89940557,592.68,591.97,1.161]
[1741480462898,0.89940557,592.67,591.97,1.161]
[1741480463098,0.89940557,592.66,591.97,1.161]
[1741480463402,0.89940557,592.65,591.97,1.161]
[1741480463597,0.89940557,592.64,591.97,1.161]
[1741480463798,0.89940557,592.63,591.97,1.161]
[1741480463997,0.89940557,592.62,591.97,1.161]
[1741480464194,0.89940557,592.61,591.97,1.161]
[1741480464394,0.89940557,592.6,591.97,1.161]
[1741480464600,0.89940557,592.59,591.97,1.161]
[1741480464800,0.89940557,592.58,591.98,0.953]
[1741480465001,0.89940557,592.57,591.98,0.953]
[1741480465201,0.89940557,592.56,591.98,0.953]
[1741480465500,0.89940557,592.55,591.98,0.953]
[1741480465700,0.89940557,592.54,591.98,0.953]
[1741480465905,0.89940557,592.53,591.98,0.953]
[1741480466096,0.89940557,592.52,591.98,0.953]
[1741480466296,0.89940557,592.51,591.98,0.953]
[1741480466498,0.89940557,592.5,591.98,0.953]
[1741480466803,0.89940557,592.49,591.98,0.953]
[1741480467002,0.89940557,592.48,591.98,0.953]
[1741480467203,0.89940557,592.47,591.98,0.953]
[1741480467404,0.89940557,592.46,591.98,0.953]
[1741480467702,0.89940557,592.45,591.98,0.953]
[1741480467905,0.89940557,592.44,591.98,0.953]
[1741480468101,0.89940557,592.43,591.98,0.953]
[1741480468301,0.29384198,592.52,591.98,0.953]
[1741480468302,0.89940557,592.42,591.98,0.953]
[1741480468500,0.89940557,592.41,591.98,0.953]
[1741480468698,0.89940557,592.4,591.98,0.953]
[1741480468898,0.89940557,592.39,591.98,0.953]
[1741480469103,0.33743883,592.7,591.98,0.953]
[1741480469303,0.89817557,592.69,591.98,0.953]
[1741480469502,0.29385935,592.38,591.98,0.953]
[1741480469705,0.33743883,592.7,591.98,0.953]
[1741480469901,0.89812111,592.69,591.98,0.953]
[1741480470207,0.33743883,592.7,591.98,0.953]
[1741480470508,0.29382214,592.68,591.98,0.953]
[1741480470704,0.89803934,592.67,591.98,0.953]
[1741480470905,0.89803934,592.66,591.98,0.953]
[1741480471105,0.89803934,592.65,591.98,0.953]
[1741480471306,0.89803934,592.64,591.98,0.953]
[1741480471503,0.89803934,592.63,591.98,0.953]
[1741480471701,0.89803934,592.62,591.98,0.953]
[1741480471907,0.89803934,592.61,591.98,0.953]
[1741480472105,0.89803934,592.6,591.98,0.953]
[1741480472307,0.89803934,592.59,591.98,0.953]
[1741480472508,0.89803934,592.58,591.98,0.953]
[1741480472707,0.89803934,592.57,591.98,0.953]
[1741480472903,0.89803934,592.56,591.98,0.953]
[1741480473103,0.89803934,592.55,591.98,0.953]
[1741480473308,0.89803934,592.54,591.98,0.953]
[1741480473613,0.89803934,592.53,591.99,0.785]
[1741480473814,0.89803934,592.52,591.99,0.785]
[1741480474014,0.89803934,592.51,591.99,0.785]
[1741480474216,0.89803934,592.5,591.99,0.785]
[1741480474414,0.89803934,592.49,591.99,0.785]
[1741480474718,0.89803934,592.48,592.0,0.673]
[1741480474915,0.89803934,592.47,592.0,0.673]
[1741480475118,0.89803934,592.46,592.0,0.673]
[1741480475313,0.89803934,592.45,592.0,0.673]
[1741480475512,0.89803934,592.44,592.0,0.673]
[1741480475716,0.89803934,592.43,592.0,0.673]
[1741480475913,0.89803934,592.42,592.0,0.673]
[1741480476116,0.89803934,592.41,592.0,0.673]
[1741480476418,0.89803934,592.4,592.0,0.673]
[1741480476612,0.89803934,592.39,592.0,0.673]
[1741480476821,0.89803934,592.38,592.0,0.673]
[1741480477016,0.89803934,592.37,592.0,0.673]
[1741480477222,0.89803934,592.36,592.0,0.673]
[1741480477421,0.29383206,592.6,592.0,0.673]
[1741480477720,0.89770422,592.59,592.0,0.673]
[1741480477923,0.89770422,592.58,592.0,0.673]
[1741480478121,0.89770422,592.57,592.0,0.673]
[1741480478321,0.89770422,592.56,592.0,0.673]
[1741480478621,0.89770422,592.55,592.0,0.673]
[1741480478819,0.89770422,592.54,592.0,0.673]
[1741480479121,0.89770422,592.53,592.0,0.673]
[1741480479321,0.89770422,592.52,592.0,0.673]
[1741480479522,0.89770422,592.51,592.01,1.07]
[1741480479723,0.89770422,592.5,592.01,1.07]
[1741480479921,0.89770422,592.49,592.01,1.07]
[1741480480121,0.89770422,592.48,592.01,1.07]
[1741480480321,0.29383206,592.58,592.01,1.07]
[1741480480322,0.89770422,592.47,592.01,1.07]
[1741480480522,0.89770422,592.46,592.01,1.07]
[1741480480723,0.89770422,592.45,592.01,1.07]
[1741480480919,0.89770422,592.44,592.01,1.07]
[1741480481124,0.89770422,592.43,592.01,1.07]
[1741480481323,0.89770422,592.42,592.01,1.07]
[1741480481527,0.89770422,592.41,592.01,1.07]
[1741480481725,0.89770422,592.4,592.01,1.07]
[1741480481926,0.29384819,592.44,592.01,1.07]
[1741480482125,0.89773456,592.43,592.01,1.07]
[1741480482326,0.89773456,592.42,592.01,1.07]
[1741480482529,0.89773456,592.41,592.01,1.07]
[1741480482726,0.29384819,592.44,592.01,1.07]
[1741480482927,0.89773366,592.43,592.01,1.07]
[1741480483127,0.89773366,592.42,592.01,1.07]
[1741480483330,0.89773366,592.41,592.01,1.07]
[1741480483525,0.89773366,592.4,592.01,1.07]
[1741480483722,0.29384819,592.44,592.01,1.07]
[1741480483926,0.8977125,592.43,592.01,1.07]
[1741480484126,0.8977125,592.42,592.01,1.07]
[1741480484326,0.8977125,592.41,592.01,1.07]
[1741480484623,0.8977125,592.4,592.01,1.07]
[1741480484827,0.89771403,592.39,592.01,1.07]
[1741480485028,0.29381717,592.43,592.01,1.07]
[1741480485229,0.89769462,592.42,592.01,1.07]
[1741480485423,0.89769462,592.41,592.01,1.07]
[1741480485628,0.89769462,592.4,592.01,1.07]
[1741480485823,0.29381717,592.43,592.01,1.07]
[1741480486027,0.89775577,592.42,592.01,1.07]
[1741480486222,0.89775577,592.41,592.01,1.07]
[1741480486423,0.89775577,592.4,592.01,1.07]
[1741480486623,0.89775577,592.39,592.01,1.07]
[1741480486827,0.29381717,592.43,592.01,1.07]
[1741480487024,0.89784953,592.42,592.01,1.07]
[1741480487225,0.89784953,592.41,592.01,1.07]
[1741480487429,0.33743883,592.7,592.01,1.07]
[1741480487430,0.89797599,592.4,592.01,1.07]
[1741480487629,0.29381717,592.42,592.01,1.07]
[1741480487829,0.89797165,592.41,592.01,1.07]
[1741480488029,0.89797099,592.4,592.01,1.07]
[1741480488330,0.89802674,592.39,592.01,1.07]
[1741480488631,0.89805538,592.38,592.01,1.07]
[1741480488827,0.89805538,592.37,592.01,1.07]
[1741480489024,0.89805538,592.36,592.01,1.07]
[1741480489225,0.29381717,592.42,592.01,1.07]
[1741480489431,0.89812333,592.41,592.01,1.07]
[1741480489632,0.89812333,592.4,592.01,1.07]
[1741480489831,0.89812333,592.39,592.01,1.07]
[1741480490031,0.89812333,592.38,592.01,1.07]
[1741480490231,0.89812333,592.37,592.01,1.07]
[1741480490531,0.8982537,592.36,592.01,1.07]
[1741480490831,0.33743883,592.7,592.01,1.07]
[1741480491029,0.89825888,592.69,592.01,1.07]
[1741480491234,0.89825888,592.68,592.01,1.07]
[1741480491533,0.89825888,592.67,592.01,1.07]
[1741480491832,0.89825888,592.66,592.01,1.07]
[1741480492131,0.29379733,592.69,592.01,1.07]
[1741480492132,0.89825888,592.65,592.01,1.07]
[1741480492332,0.89825888,592.64,592.01,1.07]
[1741480492532,0.89825888,592.63,592.01,1.07]
[1741480492832,0.89825888,592.62,592.01,1.07]
[1741480493027,0.89825888,592.61,592.01,1.07]
[1741480493234,0.89825888,592.6,592.01,1.07]
[1741480493532,0.89825888,592.59,592.01,1.07]
[1741480493733,0.89825888,592.58,592.01,1.07]
[1741480494033,0.89825888,592.57,592.02,0.836]
[1741480494233,0.89825888,592.56,592.02,0.836]
[1741480494533,0.89825888,592.55,592.02,1.841]
[1741480494734,0.89825888,592.54,592.02,2.712]
[1741480494931,0.2938271,592.61,592.02,2.712]
[1741480494932,0.89825888,592.53,592.02,2.712]
[1741480495128,0.89825888,592.52,592.02,2.712]
[1741480495329,0.89825888,592.51,592.02,2.712]
[1741480495533,0.89825888,592.5,592.02,2.712]
[1741480495729,0.89825888,592.49,592.02,2.712]
[1741480495928,0.89825888,592.48,592.02,2.712]
[1741480496234,0.89825888,592.47,592.02,2.712]
[1741480496432,0.89825888,592.46,592.02,2.712]
[1741480496627,0.89825888,592.45,592.02,2.712]
[1741480496833,0.89825888,592.44,592.02,2.712]
[1741480497032,0.89825888,592.43,592.02,2.712]
[1741480497229,0.89825888,592.42,592.02,2.712]
[1741480497433,0.89899168,592.41,592.02,2.712]
[1741480497732,0.89899168,592.4,592.02,2.712]
[1741480497929,0.89899168,592.39,592.02,2.712]
[1741480498131,0.89899168,592.38,592.02,2.712]
[1741480498332,0.89899168,592.37,592.02,2.712]
[1741480498529,0.89899168,592.36,592.02,2.712]
[1741480498737,0.89899168,592.35,592.02,2.712]
[1741480498936,0.89899168,592.34,592.02,2.712]
[1741480499138,0.89899168,592.33,592.02,2.712]
[1741480499439,0.89939962,592.32,592.02,2.712]
[1741480499737,0.89939962,592.31,592.02,2.712]
[1741480499936,0.89939962,592.3,592.02,2.712]
[1741480500132,0.89939962,592.29,592.02,2.712]
[1741480500334,0.89939962,592.28,592.02,2.712]
[1741480500536,0.89939962,592.27,592.02,2.712]
[1741480500736,0.89939962,592.26,592.02,2.712]
[1741480500935,0.89939962,592.25,592.02,2.712]
[1741480501139,0.293873,592.33,592.02,2.712]
[1741480501339,0.89948967,592.32,592.02,2.712]
[1741480501641,0.89948967,592.31,592.02,2.712]
[1741480501838,0.89948967,592.3,592.02,2.712]
[1741480502039,0.89948967,592.29,592.02,2.712]
[1741480502235,0.89948967,592.28,592.02,2.712]
[1741480502439,0.89948967,592.27,592.02,2.712]
[1741480502641,0.89948967,592.26,592.02,2.712]
[1741480502837,0.89948967,592.25,592.02,2.712]
[1741480503039,0.89948967,592.24,592.02,2.712]
[1741480503244,0.29388417,592.29,592.02,2.712]
[1741480503441,0.90048387,592.28,592.02,2.712]
[1741480503642,0.90048387,592.27,592.02,2.712]
[1741480503842,0.90048387,592.26,592.02,2.712]
[1741480504041,0.90048387,592.25,592.02,2.712]
[1741480504241,0.90048387,592.24,592.02,2.712]
[1741480504444,0.9008807,592.23,592.02,2.712]
[1741480504641,0.29388417,592.29,592.02,2.712]
[1741480504842,0.9008881,592.28,592.02,2.712]
[1741480505043,0.9008881,592.27,592.02,2.712]
[1741480505246,0.9008881,592.26,592.02,2.712]
[1741480505444,0.9008881,592.25,592.02,2.712]
[1741480505647,0.9008881,592.24,592.02,2.712]
[1741480505841,0.9008881,592.23,592.02,2.712]
[1741480506040,0.9008881,592.22,592.02,2.712]
[1741480506241,0.29388417,592.29,592.02,2.712]
[1741480506541,0.90130157,592.28,592.02,2.712]
[1741480506741,0.90130157,592.27,592.02,2.712]
[1741480506946,0.90130157,592.26,592.02,2.712]
[1741480507240,0.90130157,592.25,592.02,2.712]
[1741480507441,0.90130157,592.24,592.02,2.712]
[1741480507641,0.90130157,592.23,592.02,2.712]
[1741480507845,0.90130157,592.22,592.02,2.712]
[1741480508045,0.90130157,592.21,592.02,2.712]
[1741480508247,0.90130157,592.2,592.02,2.712]
[1741480508444,0.90177522,592.19,592.02,1.707]
[1741480508642,0.33743883,592.7,592.02,1.707]
[1741480508848,0.90176702,592.69,592.02,1.707]
[1741480509046,1.23921724,592.68,592.02,1.707]
[1741480509244,1.23922293,592.67,592.02,1.707]
[1741480509445,1.23922863,592.66,592.02,1.707]
[1741480509746,1.23923432,592.65,592.02,1.707]
[1741480509945,0.90176702,592.64,592.02,1.707]
[1741480510249,0.90176702,592.63,592.02,1.707]
[1741480510445,0.90176702,592.62,592.02,1.707]
[1741480510651,0.90176702,592.61,592.02,1.707]
[1741480510852,0.90187594,592.6,592.02,1.707]
[1741480511046,0.90187594,592.59,592.02,1.707]
[1741480511251,0.90187594,592.58,592.02,1.707]
[1741480511551,0.90187594,592.57,592.02,2.53]
[1741480511747,0.90187594,592.56,592.02,2.53]
[1741480511953,0.90187594,592.55,592.02,2.53]
[1741480512154,0.90187594,592.54,592.02,2.53]
[1741480512453,0.90187594,592.53,592.02,2.53]
[1741480512646,0.90187594,592.52,592.02,2.53]
[1741480512846,0.29384074,592.59,592.02,2.53]
[1741480513050,0.90185861,592.58,592.02,2.53]
[1741480513248,0.90185861,592.57,592.02,2.53]
[1741480513551,1.23937717,592.56,592.02,2.53]
[1741480513747,1.23938286,592.55,592.02,2.53]
[1741480513954,0.90185861,592.54,592.02,2.53]
[1741480514147,0.90185861,592.53,592.02,2.53]
[1741480514347,0.90185861,592.52,592.02,2.53]
[1741480514547,0.29387176,592.54,592.02,2.53]
[1741480514548,0.90185861,592.51,592.02,2.53]
[1741480514753,0.90185861,592.5,592.02,2.53]
[1741480514951,0.90140097,592.49,592.02,1.659]
[1741480515152,0.90140097,592.48,592.02,0.823]
[1741480515455,0.90140097,592.47,592.02,0.823]
[1741480515755,0.90140097,592.46,592.02,0.823]
[1741480515955,0.90140097,592.45,592.02,0.823]
[1741480516154,0.90140097,592.44,592.02,0.823]
[1741480516353,0.90140097,592.43,592.02,0.823]
[1741480516554,0.90140097,592.42,592.02,0.823]
[1741480516754,0.90140097,592.41,592.02,0.823]
[1741480517054,0.90073861,592.4,592.02,0.823]
[1741480517250,0.90073861,592.39,592.02,0.823]
[1741480517450,0.33753565,592.53,592.02,0.823]
[1741480517451,0.90073861,592.38,592.02,0.823]
[1741480517655,0.90073861,592.37,592.02,0.823]
[1741480517955,0.90073861,592.36,592.02,0.823]
[1741480518155,0.90073861,592.35,592.02,0.823]
[1741480518359,0.90073861,592.34,592.02,0.823]
[1741480518555,0.90073861,592.33,592.02,0.823]
[1741480518757,0.90073861,592.32,592.02,0.823]
[1741480519054,0.90026957,592.31,592.02,0.823]
[1741480519258,0.90026957,592.3,592.02,0.823]
[1741480519461,0.90026957,592.29,592.02,0.823]
[1741480519659,0.90026957,592.28,592.02,0.823]
[1741480519956,0.90026957,592.27,592.02,0.823]
[1741480520156,0.90026957,592.26,592.02,0.823]
[1741480520352,0.90026957,592.25,592.02,0.823]
[1741480520555,0.90026957,592.24,592.02,0.823]
[1741480520756,0.90026957,592.23,592.02,0.823]
[1741480521058,0.90026957,592.22,592.02,0.823]
[1741480521258,0.90026957,592.21,592.02,0.823]
[1741480521460,0.90026957,592.2,592.02,0.823]
[1741480521661,0.90026957,592.19,592.02,0.823]
[1741480521853,0.90026957,592.18,592.02,0.823]
[1741480522054,0.90026957,592.17,592.02,0.823]
[1741480522357,0.90026957,592.16,592.02,0.823]
[1741480522556,0.90026957,592.15,592.02,0.823]
[1741480522758,0.90026957,592.14,592.02,0.823]
[1741480522961,0.90026957,592.13,592.02,0.823]
[1741480523260,0.90026957,592.12,592.02,0.823]
[1741480523463,0.90026957,592.11,592.02,0.823]
[1741480523662,0.90026957,592.1,592.02,0.823]
[1741480523863,0.90026957,592.09,592.02,0.823]
[1741480524161,0.90026957,592.08,592.02,0.823]
[1741480524363,0.90026957,592.07,592.02,0.823]
[1741480524563,0.90026957,592.06,592.02,0.823]
[1741480524864,0.90026957,592.05,592.02,0.823]
[1741480525164,0.29396485,592.13,592.02,0.823]
[1741480525464,0.89859569,592.12,592.02,0.823]
[1741480525659,0.89859569,592.11,592.02,0.823]
[1741480525860,0.89859569,592.1,592.02,0.823]
[1741480526059,0.89859569,592.09,592.02,0.823]
[1741480526265,0.89859569,592.08,592.02,0.823]
[1741480526466,0.89859569,592.07,592.02,0.823]
[1741480526665,0.89859569,592.06,592.02,0.823]
[1741480526866,0.33753565,592.53,592.02,0.823]
[1741480527167,0.89824854,592.52,592.02,0.823]
[1741480527363,1.23579558,592.51,592.02,0.823]
[1741480527564,1.23580128,592.5,592.02,0.823]
[1741480527769,1.23580697,592.49,592.02,0.823]
[1741480527964,1.23581267,592.48,592.02,0.823]
[1741480528267,1.23581837,592.47,592.02,0.823]
[1741480528468,1.23582407,592.46,592.02,0.823]
[1741480528668,1.23582977,592.45,592.02,0.823]
[1741480528963,0.89824854,592.44,592.02,0.823]
[1741480529163,0.33757553,592.46,592.02,0.823]
[1741480529164,1.23584116,592.43,592.02,0.823]
[1741480529365,1.23584686,592.42,592.02,0.823]
[1741480529565,1.23585256,592.41,592.02,0.823]
[1741480529766,1.23585826,592.4,592.02,0.823]